[Event "2021 m. Jauniu lyga. III etapas. B"]
[Site "Siauliai"]
[Date "2021.07.04"]
[Round "1.1"]
[White "Persinas, Vilius"]
[Black "Ser, Daniel"]
[Result "0-1"]
[WhiteElo "1668"]
[BlackElo "1710"]
[PlyCount "68"]
[EventDate "2021.??.??"]
[TimeControl "8+4"]
[WhiteClock "0:00:23"]
[BlackClock "0:00:38"]

1. c4 {[%emt 0:00:01]} e5 {[%emt 0:00:06]} 2. Nc3 {[%emt 0:00:02]} Nc6 {[%emt
0:00:02]} 3. g3 {[%emt 0:00:04]} f5 {[%emt 0:00:05]} 4. Bg2 {[%emt 0:00:01]}
Nf6 {[%emt 0:00:01]} 5. d3 {[%emt 0:00:10]} Bb4 {[%emt 0:00:04]} 6. Bd2 {[%emt
0:00:04]} O-O {[%emt 0:00:12]} 7. Nf3 {[%emt 0:00:01]} d6 {[%emt 0:00:20]} 8.
O-O {[%emt 0:00:15]} Rb8 {[%emt 0:00:28]} 9. a3 {[%emt 0:00:08]} Bxc3 {[%emt 0:
00:03]} 10. Bxc3 {[%emt 0:00:01]} a6 {[%emt 0:00:19]} 11. Qc2 {[%emt 0:01:12]}
b5 {[%emt 0:00:26]} 12. cxb5 {[%emt 0:00:02]} axb5 {[%emt 0:00:00]} 13. Rac1 {
[%emt 0:00:17]} Bb7 {[%emt 0:00:03]} 14. Nh4 {[%emt 0:00:26]} Ne7 {[%emt 0:00:
34]} 15. Bxb7 {[%emt 0:00:23]} Rxb7 {[%emt 0:00:01]} 16. f4 {[%emt 0:00:13]}
Ng4 {[%emt 0:01:24]} 17. Qb3+ {[%emt 0:00:09]} Kh8 {[%emt 0:00:08]} 18. h3 {
[%emt 0:00:17]} Ne3 {[%emt 0:00:13]} 19. Rf3 {[%emt 0:00:09]} exf4 {[%emt 0:00:
36]} 20. gxf4 {[%emt 0:00:01]} N7d5 {[%emt 0:00:24]} 21. Ng2 {[%emt 0:00:16]}
Nxg2 {[%emt 0:00:39]} 22. Qxd5 {[%emt 0:00:19]} Nxf4 {[%emt 0:00:11]} 23. Rxf4
{[%emt 0:00:29]} Qg5+ {[%emt 0:00:02]} 24. Rg4 {[%emt 0:00:00]} Qxc1+ {[%emt 0:
00:06]} 25. Kh2 {[%emt 0:00:00]} fxg4 {[%emt 0:00:09]} 26. Bxg7+ {[%emt 0:02:
25]} Kxg7 {[%emt 0:00:03]} 27. Qg5+ Kh8 {[%emt 0:00:10]} 28. Qxc1 {[%emt 0:00:
01]} gxh3 {[%emt 0:00:18]} 29. Kxh3 {[%emt 0:00:23]} c5 {[%emt 0:00:03]} 30.
Qh6 {[%emt 0:00:02]} Rg7 {[%emt 0:01:23]} 31. Qxd6 {[%emt 0:00:03]} Rf5 {[%emt
0:00:12]} 32. Kh4 {[%emt 0:01:28]} Rg6 {[%emt 0:00:46]} 33. Qb8+ {[%emt 0:00:
16]} Kg7 {[%emt 0:00:07]} 34. Qxb5 {[%emt 0:00:07]} Kh6 {[%emt 0:00:11]} 0-1

[Event "2021 m. Jauniu lyga. III etapas. B"]
[Site "Siauliai"]
[Date "2021.07.04"]
[Round "1.2"]
[White "Ravlusevic, Evelina"]
[Black "Dijokas, Jokubas"]
[Result "0-1"]
[WhiteElo "1748"]
[BlackElo "1335"]
[PlyCount "173"]
[EventDate "2021.??.??"]
[TimeControl "8+4"]
[BlackClock "0:00:19"]

1. d4 {[%emt 0:00:01]} d5 {[%emt 0:00:02]} 2. c4 {[%emt 0:00:02]} e6 {[%emt 0:
00:02]} 3. Nf3 {[%emt 0:00:03]} c5 {[%emt 0:00:03]} 4. cxd5 {[%emt 0:00:09]}
exd5 {[%emt 0:00:02]} 5. g3 {[%emt 0:00:04]} Nc6 {[%emt 0:00:09]} 6. Bg2 {
[%emt 0:00:03]} Nf6 {[%emt 0:00:08]} 7. O-O {[%emt 0:00:03]} Be7 {[%emt 0:00:
08]} 8. Nc3 {[%emt 0:00:03]} O-O {[%emt 0:00:12]} 9. Re1 {[%emt 0:00:09]} h6 {
[%emt 0:00:35]} 10. a3 {[%emt 0:00:10]} a6 {[%emt 0:00:12]} 11. Qd3 {[%emt 0:
00:11]} c4 {[%emt 0:00:22]} 12. Qd1 {[%emt 0:00:17]} Be6 {[%emt 0:00:27]} 13.
b3 {[%emt 0:00:04]} cxb3 {[%emt 0:00:18]} 14. Qxb3 {[%emt 0:00:04]} b5 {[%emt
0:00:14]} 15. Bf4 {[%emt 0:00:46]} Na5 {[%emt 0:00:51]} 16. Qa2 {[%emt 0:00:32]
} Rc8 {[%emt 0:00:19]} 17. Rac1 {[%emt 0:00:09]} Nc6 {[%emt 0:00:37]} 18. Red1
{[%emt 0:00:15]} Qa5 {[%emt 0:00:40]} 19. Nb1 {[%emt 0:00:52]} Rfd8 {[%emt 0:
00:57]} 20. h3 {[%emt 0:00:46]} Bf5 {[%emt 0:01:06]} 21. Bd2 {[%emt 0:01:22]}
Qa4 {[%emt 0:01:19]} 22. Nc3 {[%emt 0:00:31]} Qxa3 {[%emt 0:00:07]} 23. Qxa3 {
[%emt 0:00:05]} Bxa3 {[%emt 0:00:02]} 24. Ra1 {[%emt 0:00:01]} b4 {[%emt 0:00:
24]} 25. Na4 {[%emt 0:00:19]} a5 {[%emt 0:00:12]} 26. Nc5 {[%emt 0:00:13]} Bg6
{[%emt 0:00:16]} 27. Nd3 {[%emt 0:00:32]} Bxd3 {[%emt 0:00:07]} 28. exd3 {
[%emt 0:00:01]} Re8 {[%emt 0:00:11]} 29. Be3 {[%emt 0:00:09]} Na7 {[%emt 0:00:
03]} 30. Nd2 {[%emt 0:00:40]} Nb5 {[%emt 0:00:01]} 31. Nb3 {[%emt 0:00:03]} Nc3
{[%emt 0:00:09]} 32. Re1 {[%emt 0:00:04]} Ra8 {[%emt 0:00:02]} 33. Bd2 {[%emt
0:00:59]} Nb5 {[%emt 0:00:05]} 34. Rxe8+ {[%emt 0:00:03]} Rxe8 {[%emt 0:00:03]}
35. Nxa5 {[%emt 0:00:05]} Re2 {[%emt 0:00:05]} 36. Be3 {[%emt 0:00:03]} Rc2 {
[%emt 0:00:09]} 37. Rb1 {[%emt 0:00:09]} Kf8 {[%emt 0:00:03]} 38. Nb7 {[%emt 0:
00:06]} Ke7 {[%emt 0:00:04]} 39. Nc5 {[%emt 0:00:01]} Kd6 {[%emt 0:00:06]} 40.
Nb7+ {[%emt 0:00:02]} Kc7 {[%emt 0:00:03]} 41. Nc5 {[%emt 0:00:01]} Rc3 {[%emt
0:00:04]} 42. Bd2 {[%emt 0:00:03]} Rc2 {[%emt 0:00:05]} 43. Bxb4 {[%emt 0:00:
01]} Bxb4 {[%emt 0:00:04]} 44. Rxb4 {[%emt 0:00:01]} Kc6 {[%emt 0:00:02]} 45.
Nb3 {[%emt 0:00:10]} Rc3 {[%emt 0:00:06]} 46. Nc5 {[%emt 0:00:04]} Nxd4 {[%emt
0:00:06]} 47. Rxd4 {[%emt 0:00:08]} Kxc5 {[%emt 0:00:02]} 48. Ra4 {[%emt 0:00:
01]} Rxd3 {[%emt 0:00:03]} 49. Ra5+ {[%emt 0:00:02]} Kb6 {[%emt 0:00:01]} 50.
Ra2 {[%emt 0:00:04]} Rd1+ {[%emt 0:00:02]} 51. Kh2 {[%emt 0:00:01]} d4 {[%emt
0:00:07]} 52. Bf3 {[%emt 0:00:04]} Rd3 {[%emt 0:00:06]} 53. Kg2 {[%emt 0:00:01]
} Rc3 {[%emt 0:00:07]} 54. Rd2 {[%emt 0:00:02]} Kc5 {[%emt 0:00:00]} 55. Bd1 {
[%emt 0:00:09]} g5 {[%emt 0:00:08]} 56. Bf3 {[%emt 0:00:02]} Nd7 {[%emt 0:00:
03]} 57. Be4 {[%emt 0:00:10]} Ne5 {[%emt 0:00:03]} 58. Ra2 {[%emt 0:00:08]} Kb4
{[%emt 0:00:06]} 59. Rb2+ {[%emt 0:00:05]} Ka3 {[%emt 0:00:03]} 60. Rb5 {[%emt
0:00:04]} f6 {[%emt 0:00:05]} 61. Rb6 {[%emt 0:00:02]} d3 {[%emt 0:00:11]} 62.
Rxf6 {[%emt 0:00:03]} Rc4 {[%emt 0:00:06]} 63. Bh7 {[%emt 0:00:08]} d2 {[%emt
0:00:04]} 64. Rd6 {[%emt 0:00:02]} d1=Q 65. Rxd1 {[%emt 0:00:02]} Kb4 {[%emt 0:
00:03]} 66. Rd6 {[%emt 0:00:02]} Nf7 {[%emt 0:00:03]} 67. Rf6 {[%emt 0:00:02]}
Rc7 {[%emt 0:00:02]} 68. Bg8 {[%emt 0:00:03]} Ne5 {[%emt 0:00:06]} 69. Rxh6 {
[%emt 0:00:03]} Rg7 {[%emt 0:00:04]} 70. Ba2 {[%emt 0:00:03]} Kc5 {[%emt 0:00:
05]} 71. Re6 {[%emt 0:00:02]} Nd7 {[%emt 0:00:05]} 72. Re2 {[%emt 0:00:04]} Kd4
{[%emt 0:00:03]} 73. Bb1 {[%emt 0:00:07]} Kc3 {[%emt 0:00:02]} 74. Bf5 {[%emt
0:00:05]} Nf6 {[%emt 0:00:08]} 75. Re6 {[%emt 0:00:09]} Nd5 {[%emt 0:00:02]}
76. Rg6 {[%emt 0:00:03]} Rf7 {[%emt 0:00:08]} 77. Be4 {[%emt 0:00:03]} Rd7 {
[%emt 0:00:04]} 78. Rxg5 {[%emt 0:00:03]} Nf6 {[%emt 0:00:02]} 79. Bf5 {[%emt
0:00:04]} Rd2 {[%emt 0:00:03]} 80. h4 {[%emt 0:00:03]} Kd4 {[%emt 0:00:02]} 81.
Rg6 {[%emt 0:00:05]} Ke5 {[%emt 0:00:02]} 82. Bh3 {[%emt 0:00:04]} Ne4 {[%emt
0:00:02]} 83. Re6+ {[%emt 0:00:04]} Kd5 {[%emt 0:00:05]} 84. h5 {[%emt 0:00:09]
} Rxf2+ {[%emt 0:00:02]} 85. Kg1 {[%emt 0:00:01]} Rd2 {[%emt 0:00:04]} 86. h6 {
[%emt 0:00:01]} Ng5 {[%emt 0:00:04]} 87. Bg2+ {[%emt 0:00:09]} 0-1

[Event "2021 m. Jauniu lyga. III etapas. B"]
[Site "Siauliai"]
[Date "2021.07.04"]
[Round "1.3"]
[White "Simkunaite, Gabija"]
[Black "Spevak, Dovydas"]
[Result "1-0"]
[WhiteElo "1899"]
[BlackElo "1432"]
[PlyCount "91"]
[EventDate "2021.??.??"]
[TimeControl "8+4"]
[WhiteClock "0:03:19"]
[BlackClock "0:00:32"]

1. e4 {[%emt 0:00:02]} e5 {[%emt 0:00:12]} 2. Nf3 {[%emt 0:00:02]} Nc6 {[%emt
0:00:00]} 3. d4 {[%emt 0:00:00]} exd4 {[%emt 0:00:05]} 4. Nxd4 {[%emt 0:00:02]}
Bc5 {[%emt 0:00:17]} 5. Be3 {[%emt 0:00:01]} Bxd4 {[%emt 0:00:31]} 6. Bxd4 {
[%emt 0:00:02]} Nxd4 {[%emt 0:00:00]} 7. Qxd4 {[%emt 0:00:02]} Qf6 {[%emt 0:00:
11]} 8. c3 {[%emt 0:00:20]} Qxd4 {[%emt 0:00:16]} 9. cxd4 {[%emt 0:00:03]} b6 {
[%emt 0:00:39]} 10. Nc3 {[%emt 0:00:09]} Bb7 {[%emt 0:01:23]} 11. f3 {[%emt 0:
00:33]} O-O-O {[%emt 0:00:44]} 12. d5 {[%emt 0:00:47]} Ne7 {[%emt 0:01:11]} 13.
d6 {[%emt 0:00:30]} cxd6 {[%emt 0:01:14]} 14. Nb5 {[%emt 0:00:02]} Rhf8 {[%emt
0:00:46]} 15. Nxd6+ {[%emt 0:01:02]} Kc7 {[%emt 0:00:37]} 16. Rd1 {[%emt 0:00:
32]} Nc6 {[%emt 0:00:16]} 17. Bc4 {[%emt 0:01:12]} f6 {[%emt 0:00:12]} 18. Kf2
{[%emt 0:00:08]} Ne5 {[%emt 0:00:06]} 19. Bb3 {[%emt 0:00:08]} Nc6 {[%emt 0:00:
09]} 20. Rd2 {[%emt 0:00:04]} Kb8 {[%emt 0:00:12]} 21. Rhd1 {[%emt 0:00:05]}
Bc8 {[%emt 0:00:05]} 22. Ba4 {[%emt 0:00:08]} Ne5 {[%emt 0:00:14]} 23. f4 {
[%emt 0:00:19]} Nf7 {[%emt 0:00:01]} 24. Nxc8 {[%emt 0:00:06]} Kxc8 {[%emt 0:
00:08]} 25. Bxd7+ {[%emt 0:00:08]} Kb8 {[%emt 0:00:03]} 26. Be6 {[%emt 0:00:06]
} Rxd2+ {[%emt 0:00:06]} 27. Rxd2 {[%emt 0:00:00]} Rd8 {[%emt 0:00:03]} 28.
Rxd8+ {[%emt 0:00:12]} Nxd8 {[%emt 0:00:01]} 29. Bd5 {[%emt 0:00:01]} Kc7 {
[%emt 0:00:04]} 30. e5 {[%emt 0:00:15]} fxe5 {[%emt 0:00:03]} 31. fxe5 {[%emt
0:00:00]} g5 {[%emt 0:00:09]} 32. Ke3 {[%emt 0:00:02]} Kd7 {[%emt 0:00:06]} 33.
Ke4 {[%emt 0:00:02]} Ne6 {[%emt 0:00:05]} 34. Bxe6+ {[%emt 0:00:03]} Kxe6 {
[%emt 0:00:00]} 35. g4 {[%emt 0:00:07]} a6 {[%emt 0:00:05]} 36. h3 {[%emt 0:00:
02]} a5 {[%emt 0:00:01]} 37. a4 {[%emt 0:00:01]} h6 {[%emt 0:00:03]} 38. b3 {
[%emt 0:00:00]} Kf7 {[%emt 0:00:04]} 39. Kf5 {[%emt 0:00:00]} Ke7 {[%emt 0:00:
01]} 40. e6 {[%emt 0:00:00]} Ke8 {[%emt 0:00:10]} 41. Kf6 {[%emt 0:00:06]} Kf8
{[%emt 0:00:01]} 42. e7+ {[%emt 0:00:03]} Ke8 {[%emt 0:00:03]} 43. Ke6 {[%emt
0:00:04]} b5 {[%emt 0:00:02]} 44. axb5 {[%emt 0:00:00]} a4 {[%emt 0:00:01]} 45.
b6 {[%emt 0:00:00]} axb3 {[%emt 0:00:12]} 46. b7 {[%emt 0:00:00]} 1-0

[Event "2021 m. Jauniu lyga. III etapas. B"]
[Site "Siauliai"]
[Date "2021.07.04"]
[Round "1.4"]
[White "Maciuitis, Ignas"]
[Black "Venckevicius, Justas"]
[Result "0-1"]
[WhiteElo "1855"]
[BlackElo "1692"]
[PlyCount "102"]
[EventDate "2021.??.??"]
[TimeControl "8+4"]
[WhiteClock "0:01:38"]
[BlackClock "0:00:28"]

1. e4 {[%emt 0:00:01]} c6 {[%emt 0:00:01]} 2. Nc3 {[%emt 0:00:02]} d5 {[%emt 0:
00:01]} 3. Nf3 {[%emt 0:00:00]} Nf6 {[%emt 0:00:02]} 4. e5 {[%emt 0:00:07]}
Nfd7 {[%emt 0:00:01]} 5. d4 {[%emt 0:00:02]} e6 {[%emt 0:00:02]} 6. Bd3 {[%emt
0:00:03]} c5 {[%emt 0:00:02]} 7. Be3 {[%emt 0:00:36]} Nc6 {[%emt 0:00:20]} 8.
Bb5 {[%emt 0:00:24]} cxd4 {[%emt 0:02:50]} 9. Bxd4 {[%emt 0:00:01]} a6 {[%emt
0:00:07]} 10. Be2 {[%emt 0:00:40]} Nxd4 {[%emt 0:00:14]} 11. Qxd4 {[%emt 0:00:
01]} Bc5 {[%emt 0:00:07]} 12. Qf4 {[%emt 0:00:12]} Qb6 {[%emt 0:01:02]} 13. Ng5
{[%emt 0:01:00]} O-O {[%emt 0:00:23]} 14. Na4 {[%emt 0:01:13]} Qb4+ {[%emt 0:
00:28]} 15. Qxb4 {[%emt 0:00:03]} Bxb4+ {[%emt 0:00:01]} 16. c3 {[%emt 0:00:06]
} Be7 {[%emt 0:00:01]} 17. Nf3 {[%emt 0:00:18]} b5 {[%emt 0:00:06]} 18. c4 {
[%emt 0:00:19]} bxa4 {[%emt 0:00:06]} 19. cxd5 {[%emt 0:00:01]} exd5 {[%emt 0:
00:07]} 20. O-O {[%emt 0:00:02]} Bb7 {[%emt 0:00:04]} 21. Rfd1 {[%emt 0:00:12]}
Rac8 {[%emt 0:00:10]} 22. Rd2 {[%emt 0:00:06]} Rfe8 {[%emt 0:00:48]} 23. Bd3 {
[%emt 0:00:15]} g6 {[%emt 0:00:23]} 24. Bc2 {[%emt 0:00:19]} Nb6 {[%emt 0:00:
14]} 25. Re2 {[%emt 0:00:20]} Bf8 {[%emt 0:00:03]} 26. Rae1 {[%emt 0:00:09]}
Bg7 {[%emt 0:00:07]} 27. h3 {[%emt 0:00:18]} Re7 {[%emt 0:00:12]} 28. Ng5 {
[%emt 0:00:24]} h6 {[%emt 0:00:10]} 29. Nf3 {[%emt 0:00:08]} Rc4 {[%emt 0:00:
25]} 30. b3 {[%emt 0:00:20]} axb3 {[%emt 0:00:02]} 31. Bxb3 {[%emt 0:00:00]}
Re4 {[%emt 0:00:01]} 32. Rxe4 {[%emt 0:00:21]} dxe4 {[%emt 0:00:01]} 33. Nh4 {
[%emt 0:00:02]} Rxe5 {[%emt 0:00:04]} 34. Nxg6 {[%emt 0:00:02]} Rg5 {[%emt 0:
00:23]} 35. Nf4 {[%emt 0:00:06]} Rf5 {[%emt 0:00:25]} 36. g3 {[%emt 0:00:06]}
Kf8 {[%emt 0:00:18]} 37. Bc2 {[%emt 0:00:13]} Re5 {[%emt 0:00:03]} 38. Rb1 {
[%emt 0:00:02]} Rb5 {[%emt 0:00:03]} 39. Rd1 {[%emt 0:00:04]} Ke7 {[%emt 0:00:
03]} 40. Bb3 {[%emt 0:00:03]} a5 {[%emt 0:00:03]} 41. Re1 {[%emt 0:00:08]} a4 {
[%emt 0:00:02]} 42. Bc2 {[%emt 0:00:01]} f5 {[%emt 0:00:02]} 43. g4 {[%emt 0:
00:25]} Rb2 {[%emt 0:00:13]} 44. Bb1 {[%emt 0:00:02]} Bd4 {[%emt 0:00:03]} 45.
Ne2 {[%emt 0:00:05]} Bc5 {[%emt 0:00:15]} 46. gxf5 {[%emt 0:00:03]} e3 {[%emt
0:00:04]} 47. fxe3 {[%emt 0:00:10]} Bxe3+ {[%emt 0:00:03]} 48. Kf1 {[%emt 0:00:
01]} Kf6 {[%emt 0:00:05]} 49. Bd3 {[%emt 0:00:07]} Rxa2 {[%emt 0:00:05]} 50.
Rb1 {[%emt 0:00:04]} a3 {[%emt 0:00:06]} 51. Rxb6+ {[%emt 0:00:02]} Bxb6 {
[%emt 0:00:01]} 0-1

[Event "2021 m. Jauniu lyga. III etapas. B"]
[Site "Siauliai"]
[Date "2021.07.04"]
[Round "2.1"]
[White "Ser, Daniel"]
[Black "Venckevicius, Justas"]
[Result "1-0"]
[WhiteElo "1710"]
[BlackElo "1692"]
[PlyCount "78"]
[EventDate "2021.??.??"]
[TimeControl "8+4"]
[WhiteClock "0:00:20"]

1. d4 {[%emt 0:00:02]} d5 {[%emt 0:00:03]} 2. Bf4 {[%emt 0:00:00]} Nf6 {[%emt
0:00:02]} 3. e3 {[%emt 0:00:01]} Bf5 {[%emt 0:00:07]} 4. c4 {[%emt 0:00:00]} e6
{[%emt 0:00:05]} 5. Nc3 {[%emt 0:00:00]} c6 {[%emt 0:00:03]} 6. Qb3 {[%emt 0:
00:02]} Qb6 {[%emt 0:00:07]} 7. c5 {[%emt 0:00:00]} Qxb3 {[%emt 0:00:03]} 8.
axb3 {[%emt 0:00:00]} Nbd7 {[%emt 0:00:20]} 9. b4 {[%emt 0:00:01]} a6 {[%emt 0:
00:02]} 10. b5 {[%emt 0:00:00]} cxb5 {[%emt 0:00:10]} 11. Nxb5 {[%emt 0:00:02]}
Kd8 {[%emt 0:00:28]} 12. Nd6 {[%emt 0:01:42]} Bxd6 {[%emt 0:00:11]} 13. Bxd6 {
[%emt 0:00:03]} Ne4 {[%emt 0:00:12]} 14. Bg3 {[%emt 0:00:14]} Nxg3 {[%emt 0:01:
53]} 15. hxg3 {[%emt 0:00:01]} f6 {[%emt 0:00:45]} 16. f4 {[%emt 0:00:49]} e5 {
[%emt 0:00:23]} 17. Nf3 {[%emt 0:00:08]} exd4 {[%emt 0:00:08]} 18. exd4 {[%emt
0:00:03]} Re8+ {[%emt 0:00:05]} 19. Kd2 {[%emt 0:00:03]} Kc7 {[%emt 0:00:17]}
20. Bd3 {[%emt 0:00:16]} Bxd3 {[%emt 0:00:13]} 21. Kxd3 {[%emt 0:00:01]} h6 {
[%emt 0:00:02]} 22. Rhe1 {[%emt 0:00:13]} Nf8 {[%emt 0:01:42]} 23. Nh4 {[%emt
0:00:35]} g6 {[%emt 0:00:05]} 24. b4 {[%emt 0:00:07]} Kc6 {[%emt 0:00:24]} 25.
g4 {[%emt 0:01:34]} Kb5 {[%emt 0:01:09]} 26. f5 {[%emt 0:00:51]} g5 {[%emt 0:
00:16]} 27. Nf3 {[%emt 0:00:00]} Kc6 {[%emt 0:00:33]} 28. Rh1 {[%emt 0:00:50]}
Re4 {[%emt 0:00:01]} 29. Rxh6 {[%emt 0:00:00]} Nd7 {[%emt 0:00:01]} 30. Ne5+ {
[%emt 0:00:51]} Kc7 {[%emt 0:00:14]} 31. Nxd7 {[%emt 0:00:21]} Kxd7 {[%emt 0:
00:01]} 32. Rxf6 {[%emt 0:00:01]} Rae8 {[%emt 0:00:02]} 33. Rd6+ {[%emt 0:00:
15]} Kc7 {[%emt 0:00:01]} 34. Rxd5 {[%emt 0:00:06]} Rxg4 {[%emt 0:00:01]} 35.
Ra2 {[%emt 0:00:13]} Re1 {[%emt 0:00:03]} 36. Rf2 {[%emt 0:00:29]} Rb1 {[%emt
0:00:14]} 37. f6 {[%emt 0:00:16]} Rg3+ {[%emt 0:00:04]} 38. Kc2 {[%emt 0:00:01]
} Rxb4 {[%emt 0:00:04]} 39. f7 {[%emt 0:00:03]} Rc4+ {[%emt 0:00:08]} 1-0

[Event "2021 m. Jauniu lyga. III etapas. B"]
[Site "Siauliai"]
[Date "2021.07.04"]
[Round "2.2"]
[White "Spevak, Dovydas"]
[Black "Maciuitis, Ignas"]
[Result "0-1"]
[WhiteElo "1432"]
[BlackElo "1855"]
[PlyCount "60"]
[EventDate "2021.??.??"]
[TimeControl "8+4"]
[WhiteClock "0:00:12"]
[BlackClock "0:06:02"]

1. d4 {[%emt 0:00:11]} f5 {[%emt 0:00:01]} 2. e4 {[%emt 0:00:26]} fxe4 {[%emt
0:00:02]} 3. Nc3 {[%emt 0:00:01]} Nf6 {[%emt 0:00:01]} 4. Bg5 {[%emt 0:00:11]}
e6 {[%emt 0:00:14]} 5. Nxe4 {[%emt 0:00:24]} Be7 {[%emt 0:00:00]} 6. Bxf6 {
[%emt 0:00:42]} Bxf6 {[%emt 0:00:03]} 7. Nxf6+ {[%emt 0:00:04]} Qxf6 {[%emt 0:
00:00]} 8. c3 {[%emt 0:00:17]} O-O {[%emt 0:00:03]} 9. Nf3 {[%emt 0:00:28]} b6
{[%emt 0:00:06]} 10. d5 {[%emt 0:00:47]} Bb7 {[%emt 0:00:10]} 11. dxe6 {[%emt
0:00:11]} Qxe6+ {[%emt 0:00:19]} 12. Qe2 {[%emt 0:00:31]} Bxf3 {[%emt 0:00:06]}
13. Qxe6+ {[%emt 0:00:14]} dxe6 {[%emt 0:00:02]} 14. gxf3 {[%emt 0:00:00]} Nd7
{[%emt 0:00:07]} 15. Bc4 {[%emt 0:00:32]} Rae8 {[%emt 0:00:02]} 16. Ke2 {[%emt
0:00:16]} Ne5 {[%emt 0:00:08]} 17. Bb3 {[%emt 0:00:50]} Nxf3 {[%emt 0:00:10]}
18. Rad1 {[%emt 0:00:19]} Ne5 {[%emt 0:00:10]} 19. Rhf1 {[%emt 0:01:12]} g6 {
[%emt 0:00:27]} 20. f4 {[%emt 0:00:35]} Ng4 {[%emt 0:00:02]} 21. h3 {[%emt 0:
00:09]} Nh6 {[%emt 0:00:10]} 22. Kf3 {[%emt 0:00:37]} Kg7 {[%emt 0:00:32]} 23.
Rd7+ {[%emt 0:00:09]} Rf7 {[%emt 0:00:01]} 24. Rfd1 {[%emt 0:00:05]} Ree7 {
[%emt 0:00:17]} 25. Rxe7 {[%emt 0:00:10]} Rxe7 {[%emt 0:00:00]} 26. Rd8 {[%emt
0:00:08]} a5 {[%emt 0:00:02]} 27. Ke4 {[%emt 0:00:08]} Kf6 {[%emt 0:00:14]} 28.
Rf8+ {[%emt 0:00:02]} Nf7 {[%emt 0:00:10]} 29. Rc8 {[%emt 0:00:09]} Nd6+ {
[%emt 0:00:16]} 30. Kd4 {[%emt 0:00:05]} Nxc8 {[%emt 0:00:01]} 0-1

[Event "2021 m. Jauniu lyga. III etapas. B"]
[Site "Siauliai"]
[Date "2021.07.04"]
[Round "2.3"]
[White "Dijokas, Jokubas"]
[Black "Simkunaite, Gabija"]
[Result "0-1"]
[WhiteElo "1335"]
[BlackElo "1899"]
[PlyCount "132"]
[EventDate "2021.??.??"]
[TimeControl "8+4"]
[WhiteClock "0:00:07"]
[BlackClock "0:00:38"]

1. e4 {[%emt 0:00:01]} c5 {[%emt 0:00:02]} 2. c3 {[%emt 0:00:00]} Nf6 {[%emt 0:
00:11]} 3. e5 {[%emt 0:00:02]} Nd5 {[%emt 0:00:00]} 4. d4 {[%emt 0:00:00]} e6 {
[%emt 0:00:01]} 5. Nf3 {[%emt 0:00:06]} d6 {[%emt 0:00:03]} 6. Bc4 {[%emt 0:00:
22]} Be7 {[%emt 0:00:11]} 7. O-O {[%emt 0:00:10]} O-O {[%emt 0:00:03]} 8. Na3 {
[%emt 0:00:17]} cxd4 {[%emt 0:00:11]} 9. cxd4 {[%emt 0:00:03]} dxe5 {[%emt 0:
00:02]} 10. dxe5 {[%emt 0:00:15]} Bxa3 {[%emt 0:00:08]} 11. bxa3 {[%emt 0:00:
01]} Nc6 {[%emt 0:00:20]} 12. Bb2 {[%emt 0:00:21]} Nb6 {[%emt 0:00:55]} 13. Bb3
{[%emt 0:00:03]} Qe7 {[%emt 0:00:15]} 14. Qc2 {[%emt 0:00:10]} Bd7 {[%emt 0:00:
06]} 15. Rac1 {[%emt 0:00:21]} Rac8 {[%emt 0:00:04]} 16. Qb1 {[%emt 0:00:02]}
Rfd8 {[%emt 0:00:40]} 17. Rfd1 {[%emt 0:00:05]} Na5 {[%emt 0:00:15]} 18. Qe4 {
[%emt 0:01:06]} Bc6 {[%emt 0:00:24]} 19. Qg4 {[%emt 0:00:19]} Bxf3 {[%emt 0:00:
16]} 20. Qxf3 {[%emt 0:00:03]} Rxd1+ {[%emt 0:00:05]} 21. Qxd1 {[%emt 0:00:15]}
Nac4 {[%emt 0:01:20]} 22. Bxc4 {[%emt 0:01:23]} Nxc4 {[%emt 0:00:22]} 23. Qb3 {
[%emt 0:00:42]} Nb6 {[%emt 0:00:35]} 24. Rxc8+ {[%emt 0:00:17]} Nxc8 {[%emt 0:
00:01]} 25. Bd4 {[%emt 0:00:34]} Qd7 {[%emt 0:00:37]} 26. Qc3 {[%emt 0:00:43]}
h6 {[%emt 0:00:04]} 27. g3 {[%emt 0:00:05]} a6 {[%emt 0:00:20]} 28. Be3 {[%emt
0:00:28]} Ne7 {[%emt 0:00:08]} 29. Qb3 {[%emt 0:00:20]} Nf5 {[%emt 0:00:08]}
30. h3 {[%emt 0:00:31]} b5 {[%emt 0:00:13]} 31. Qc3 {[%emt 0:00:18]} Qd1+ {
[%emt 0:00:42]} 32. Kg2 {[%emt 0:00:48]} Qd5+ {[%emt 0:00:03]} 33. Kf1 {[%emt
0:00:04]} Qxa2 {[%emt 0:00:20]} 34. Qc8+ {[%emt 0:00:01]} Kh7 {[%emt 0:00:01]}
35. Qxa6 {[%emt 0:00:02]} Nxe3+ {[%emt 0:00:02]} 36. fxe3 {[%emt 0:00:02]} Qa1+
{[%emt 0:00:03]} 37. Kf2 {[%emt 0:00:05]} Qxe5 {[%emt 0:00:02]} 38. Qa7 {[%emt
0:00:09]} Qf5+ {[%emt 0:00:05]} 39. Kg2 {[%emt 0:00:03]} Kg6 {[%emt 0:00:06]}
40. Qa5 {[%emt 0:00:11]} Qd5+ {[%emt 0:00:08]} 41. Kf2 {[%emt 0:00:05]} h5 {
[%emt 0:00:08]} 42. Qc3 {[%emt 0:00:04]} Qf5+ {[%emt 0:00:05]} 43. Kg2 {[%emt
0:00:04]} Qd5+ {[%emt 0:00:19]} 44. Kf2 {[%emt 0:00:04]} f6 {[%emt 0:00:05]}
45. Qb2 {[%emt 0:00:12]} e5 {[%emt 0:00:11]} 46. Qc2+ {[%emt 0:00:02]} Kh6 {
[%emt 0:00:01]} 47. Qc1 {[%emt 0:00:04]} e4 {[%emt 0:00:02]} 48. Qb2 {[%emt 0:
00:04]} Qf5+ {[%emt 0:00:01]} 49. Kg1 {[%emt 0:00:08]} Qxh3 {[%emt 0:00:03]}
50. Qf2 {[%emt 0:00:02]} Qg4 {[%emt 0:00:04]} 51. Kh2 {[%emt 0:00:06]} Qf3 {
[%emt 0:00:02]} 52. Qd2 {[%emt 0:00:05]} g5 {[%emt 0:00:10]} 53. Qd4 {[%emt 0:
00:06]} Qf2+ {[%emt 0:00:02]} 54. Kh1 {[%emt 0:00:10]} Qf1+ {[%emt 0:00:05]}
55. Kh2 {[%emt 0:00:02]} Qf3 {[%emt 0:00:07]} 56. Qc5 {[%emt 0:00:08]} Qf2+ {
[%emt 0:00:08]} 57. Kh1 {[%emt 0:00:04]} Qxg3 {[%emt 0:00:02]} 58. Qf8+ {[%emt
0:00:01]} Kg6 {[%emt 0:00:01]} 59. Qg8+ {[%emt 0:00:01]} Kf5 {[%emt 0:00:01]}
60. Qd5+ {[%emt 0:00:02]} Qe5 {[%emt 0:00:01]} 61. Qd7+ {[%emt 0:00:01]} Qe6 {
[%emt 0:00:00]} 62. Qxb5+ {[%emt 0:00:02]} Kg6 {[%emt 0:00:01]} 63. Qc5 {[%emt
0:00:11]} h4 {[%emt 0:00:00]} 64. Kh2 {[%emt 0:00:08]} Qa2+ {[%emt 0:00:01]}
65. Kg1 {[%emt 0:00:04]} h3 {[%emt 0:00:02]} 66. Qd4 {[%emt 0:00:05]} Qg2# {
[%emt 0:00:01]} 0-1